[Event "Frauenbundesliga 2021-22"]
[Site "Germany"]
[Date "2022.05.29"]
[Round "11.4"]
[White "Stefanova, Antoaneta"]
[Black "Savina, Anastasia"]
[Result "1-0"]
[ECO "C41"]
[WhiteElo "2458"]
[BlackElo "2348"]
[Annotator "TA"]
[PlyCount "59"]
[EventDate "2021.11.26"]
[EventType "team-tourn"]
[EventCountry "GER"]
[SourceTitle "playchess.com"]
[Source "ChessBase"]
[SourceQuality "1"]
[WhiteTeam "Baden-Baden"]
[BlackTeam "Bad Koenigshofen"]
[TimeControl "40/5400+30:1800+30"]

{[%evp 16,59,33,38,33,25,37,24,10,25,25,8,11,15,10,38,35,22,33,0,0,-30,-34,-93,-93,-118,-121,-126,-107,-112,0,0,0,0,0,0,0,0,0,0,0,-25,0,0,29983,5915]} 1. d4 {[%emt 0:03:09]} d6 {[%emt 0:02:04]} 2. e4 {[%emt 0:04:12]} Nf6 {[%emt 0:00:35]} 3. Nc3 {[%emt 0:00:46]} e5 {[%emt 0:00:48]} 4. Nf3 {[%emt 0:01:28]} Nbd7 {[%emt 0:00:10]} 5. Bc4 {[%emt 0:00:48]} Be7 {[%emt 0:00:06]} 6. a4 {[%emt 0:00:32]} c6 {[%emt 0:02:34]} 7. O-O {[%emt 0:01:15]} O-O {[%emt 0:02:04]} 8. Re1 {[%emt 0:01:01]} a5 {[%emt 0:00:56]} 9. h3 {[%emt 0:04:31]} Nb6 {[%emt 0:10:14] 9...Nb6 scores better than 9...exd4. C41: Philidor Defence.} 10. Ba2 {[%emt 0:10:22]} Nfd7 {[%emt 0:04:33]} 11. Be3 {[%emt 0:07:47]} exd4 {[%emt 0:06:11] White has an edge.} 12. Qxd4 {[%emt 0:00:42] is the legacy move (12.Bxd4).} Nc5 {[%emt 0:11:20]} 13. Rad1 {[%emt 0:01:21]} Be6 {[%emt 0:10:05]} 14. Bxe6 {[%emt 0:04:48]} fxe6 {[%emt 0:00:05]} 15. e5 {[%emt 0:00:19][%cal Re5d6]} d5 {[%emt 0:06:08]} 16. Qg4 {[%emt 0:01:32]} Qe8 {[%emt 0:00:27]} 17. b3 {[%emt 0:02:50]} (17. Nd4 $5 {[%cal Rd4e6]} Qg6 18. Qxg6 hxg6 19. Bc1 $14 (19. Nxe6 Nxe6 20. Bxb6 Rf4 $11)) 17... Nbd7 {[%emt 0:05:06]} 18. h4 {[%emt 0:05:49]} Rf5 {[%emt 0:13:56] [#]} 19. Nd4 $146 {[%emt 0:08:22]} (19. Bf4 $15) ({Predecessor:} 19. Bf4 Qg6 20. Qxg6 hxg6 21. g3 Raf8 22. Ne2 Nb8 23. Kg2 Nba6 24. Nfd4 Rh5 25. Rh1 {1-0 (47) Lettieri,G (2395)-Messina,E (2216) Napoli 2013}) 19... Nxe5 $17 {[%emt 0:03:33]} 20. Qg3 {[%emt 0:23:53]} Rh5 {[%emt 0:04:49]} 21. Bg5 {[%emt 0:00:23]} Bxg5 {[%emt 0:03:17]} 22. hxg5 {[%emt 0:00:06]} Nf7 {[%emt 0:01:43]} (22... Ng6 $17 {...Qf7 is the strong threat.} 23. Qe3 Qe7 24. Nxe6 Nxe6 25. Qxe6+ Qxe6 26. Rxe6 Rxg5) 23. f4 $1 $11 {[%emt 0:01:33]} e5 {[%emt 0:02:03]} 24. Qf3 $1 {[%emt 0:09:03]} g6 {[%emt 0:01:29]} 25. Nxd5 $1 {[%emt 0:03:28]} cxd5 {[%emt 0:00:31]} 26. Qxd5 {[%emt 0:00:05]} Qd7 {[%emt 0:03:52]} 27. Qxc5 {[%emt 0:03:00] Threatens to win with Nf3.} exd4 {[%emt 0:00:04]} 28. Re7 {[%emt 0:00:10]} Qg4 {[%emt 0:01:51]} 29. Rde1 {[%emt 0:00:39] White threatens Re8+ and mate. Chess con chili.} Rf8 {[%emt 0:03:54][%mdl 8192] [#]} (29... Qxf4 $2 {gets mated.} 30. Re8+ Rxe8 31. Rxe8+ Kg7 32. Qf8#) (29... h6 $11 30. Re8+ (30. Qb6 Qf5 $17) 30... Rxe8 31. Rxe8+ Kh7 32. Rh8+ Kxh8 33. Qf8+ Kh7 34. Qxf7+ Kh8 35. Qf8+ Kh7 36. Qf7+ Kh8 37. Qf8+ Kh7 38. Qf7+) 30. Re8 {[%emt 0:01:36] Weighted Error Value: White=0.09 (flawless) /Black=0.36} ({But not} 30. Qxd4 $2 {[#]} Rxg5 $1 31. R1e2 Rh5 $19) 1-0

[Event "Frauenbundesliga 2021-22"]
[Site "Germany"]
[Date "2022.05.29"]
[Round "11.4"]
[White "Roebers, Eline"]
[Black "Naumann, Nadine"]
[Result "1-0"]
[ECO "A11"]
[WhiteElo "2369"]
[BlackElo "1951"]
[Annotator "TA"]
[PlyCount "53"]
[EventDate "2021.11.26"]
[EventType "team-tourn"]
[EventCountry "GER"]
[SourceTitle "playchess.com"]
[Source "ChessBase"]
[SourceQuality "1"]
[WhiteTeam "Hamburger SK"]
[BlackTeam "Loeberitz"]
[TimeControl "40/5400+30:1800+30"]

{[%evp 9,53,14,25,20,13,0,33,6,1,0,31,0,0,0,2,17,0,8,18,17,20,25,18,20,21,18,162,162,191,188,209,184,219,191,242,230,564,458,29983,29984,29978,29979,29979,29972,6224,4425]} 1. c4 {[%emt 0:00:07]} c6 {[%emt 0:00:34]} 2. g3 {[%emt 0:01:38]} d5 {[%emt 0:00:56]} 3. Bg2 {[%emt 0:00:22]} Nf6 {[%emt 0:00:44]} 4. Nf3 {[%emt 0:00:16][%cal Bg1f3,Bf3e1,Be1c2,Bc2e3][%mdl 32]} Nbd7 {[%emt 0:01:31]} 5. O-O {[%emt 0:05:58]} e5 {[%emt 0:04:48]} 6. d4 {[%emt 0:12:13] A11: English Opening: 1...c6.} e4 {[%emt 0:14:50]} 7. Ne1 {[%emt 0:00:28] [#]} Bd6 $146 {[%emt 0:01:08]} ({Predecessor:} 7... Be7 8. Nc3 O-O 9. Nc2 Nb6 10. c5 Nbd7 11. b4 Re8 12. b5 Nf8 13. bxc6 bxc6 {½-½ (20) Kuemin,S (2392)-Battulga,N (2180) Istanbul 2004}) 8. Nc3 {[%emt 0:00:48] White is slightly better.} O-O {[%emt 0:01:12]} 9. Nc2 {[%emt 0:09:22]} Re8 {[%emt 0:10:16]} 10. Ne3 {[%emt 0:03:49][%cal Rc4d5]} dxc4 {[%emt 0:00:19]} 11. Qc2 {[%emt 0:01:55]} Bf8 {[%emt 0:08:48]} 12. Rd1 {[%emt 0:05:10][%cal Rc3e4]} Qe7 {[%emt 0:06:30]} 13. Nxc4 {[%emt 0:03:08]} Nb6 {[%emt 0:04:11]} 14. Nxb6 {[%emt 0:06:26]} axb6 {[%emt 0:00:07]} 15. Bg5 {[%emt 0:00:08][%cal Oc3e4]} Bf5 {[%emt 0:01:35]} 16. Bxf6 {[%emt 0:06:30]} gxf6 {[%emt 0:01:00]} 17. e3 {[%emt 0:00:38]} Bg4 {[%emt 0:03:15] Black cannot hold the game after this.} (17... Bg6 $11 {and Black stays safe.}) 18. Bxe4 $18 {[%emt 0:02:53]} Bxd1 {[%emt 0:01:06]} 19. Bxh7+ {[%emt 0:00:03]} ({Resist} 19. Rxd1 $6 h6 $14) 19... Kh8 {[%emt 0:01:08]} 20. Rxd1 {[%emt 0:00:32][%cal Ba1d1,Bd1d4,Bd4h4,Bh4e4][%mdl 32]} Ra5 {[%emt 0:01:14]} 21. d5 {[%emt 0:04:03] aiming for Bf5.} Bh6 {[%emt 0:01:48]} (21... f5 $142) 22. Rd4 $40 {[%emt 0:08:08][%mdl 128] White is out for blood.} Qc5 $2 {[%emt 0:10:50]} (22... Bxe3 $2 23. Re4 Qf8 24. fxe3 $18) (22... cxd5 23. b4 (23. Nxd5 Qe5 $18) (23. Rxd5 Rxd5 24. Nxd5 Qc5 $16) 23... Raa8 24. Nxd5 Qe5) 23. Rh4 {[%emt 0:06:36]} Bg5 {[%emt 0:01:26] [#]} (23... Qf8 $18 24. Be4 cxd5) 24. Bg8+ $1 {[%emt 0:00:40][%mdl 512]} Kxg8 {[%emt 0:00:36]} 25. Qh7+ {[%emt 0:00:05]} Kf8 {[%emt 0:00:09]} 26. Qh8+ {[%emt 0:00:04]} Ke7 {[%emt 0:00:18]} 27. Re4+ {[%emt 0:00:03][%mdl 64] Skewer, Deflection.  Weighted Error Value: White=0.09 (flawless) /Black=0.85} 1-0

[Event "Frauenbundesliga 2021-22"]
[Site "Germany"]
[Date "2022.05.29"]
[Round "11.4"]
[White "Rapport, Jovana"]
[Black "Arabidze, Meri"]
[Result "0-1"]
[ECO "A46"]
[WhiteElo "2294"]
[BlackElo "2436"]
[Annotator "TA"]
[PlyCount "76"]
[EventDate "2021.11.26"]
[EventType "team-tourn"]
[EventCountry "GER"]
[SourceTitle "playchess.com"]
[Source "ChessBase"]
[SourceQuality "1"]
[WhiteTeam "Deizisau"]
[BlackTeam "Schwaebisch Hall"]
[TimeControl "40/5400+30:1800+30"]

{[%evp 14,76,28,27,21,37,22,18,54,18,28,0,0,-11,-4,-12,0,-91,-83,-95,-94,-113,-110,-123,-125,-160,-154,-150,-115,-146,-144,-198,-189,-247,-244,-939,-763,-1995,-1994,-1868,-1802,-2226,-2008,-2197,-1818,-1475,-599,-579,-529,-707,-707,-1072,-1018,-29990,-29991,-29996,-29991,-29997,-29992,-29992,-29985,-29988,-29989,-29998,-29999]} 1. e4 {[%emt 0:00:05]} c5 {[%emt 0:00:07]} 2. Nf3 {[%emt 0:00:07]} e6 {[%emt 0:00:05]} 3. g3 {[%emt 0:00:13]} Nc6 {[%emt 0:00:37]} 4. d4 {[%emt 0:00:20]} cxd4 {[%emt 0:00:33]} 5. Nxd4 {[%emt 0:00:06]} Qc7 {[%emt 0:01:54]} 6. Bg2 {[%emt 0:10:47]} Nf6 {[%emt 0:02:49]} 7. O-O {[%emt 0:02:52]} a6 {[%emt 0:01:15]} 8. c4 {[%emt 0:03:24]} Nxd4 {[%emt 0:05:07] A46: 1 d4 Nf6 2 Nf3 e6: Torre, London and Colle Systems.} 9. Qxd4 {[%emt 0:00:06]} Bc5 {[%emt 0:00:08]} 10. Qd1 {[%emt 0:04:14] [#]} h6 $146 {[%emt 0:08:32] The position is equal.} ({Predecessor:} 10... d6 11. Bg5 Nd7 12. Nc3 h6 13. Bd2 Ne5 14. Qa4+ Bd7 15. Nb5 Qb8 16. Qb3 axb5 17. cxb5 {0-1 (61) Priebs,L (2033)-Pohle,D (2173) Goch 2008}) 11. Nc3 {[%emt 0:01:01]} (11. e5 $5 Qxe5 12. Nc3 $14) 11... d6 {[%emt 0:03:25]} 12. a3 {[%emt 0:13:20]} O-O {[%emt 0:03:32]} 13. b4 {[%emt 0:04:54]} Ba7 {[%emt 0:00:35]} 14. Qe2 {[%emt 0:00:40]} e5 {[%emt 0:06:24]} 15. Bb2 {[%emt 0:13:09]} (15. Be3 $11) 15... Bg4 $17 {[%emt 0:02:16]} 16. Qd3 {[%emt 0:02:17]} Rac8 {[%emt 0:04:11]} 17. h3 {[%emt 0:07:19]} Be6 {[%emt 0:04:12]} 18. Rfd1 {[%emt 0:02:27]} Bd4 {[%emt 0:09:39]} ({Stronger than} 18... Qxc4 19. Qxc4 Rxc4 20. Rxd6 $15) ({Inferior is} 18... Bxc4 19. Qxd6 Bb3 20. Qxc7 Rxc7 21. Rd3 $15) 19. Qd2 {[%emt 0:09:32]} Qxc4 {[%emt 0:05:38][%cal Rd4c3]} 20. Rdc1 {[%emt 0:10:20][%cal Oc3d5]} Bxc3 {[%emt 0:14:44] Black is more active.} 21. Qxc3 {[%emt 0:04:48]} Qe2 {[%emt 0:03:46]} 22. Re1 {[%emt 0:00:47] [#]} (22. Bf3 $17 {might work better.} Rxc3 23. Bxe2) 22... Qh5 $1 $19 {[%emt 0:02:37]} ({Not} 22... Rxc3 23. Rxe2 Rd3 24. Rc1 $17) 23. Qd3 {[%emt 0:01:21]} (23. Qf3 $142) 23... Bxh3 {[%emt 0:02:11]} 24. Qxd6 $2 {[%emt 0:00:05]} (24. Bf3 Bg4 25. Bh1) 24... Ng4 {[%emt 0:04:31]} 25. Bf3 {[%emt 0:00:05] [#]} Bg2 $1 {[%emt 0:05:32][%mdl 512]} 26. Bxg2 {[%emt 0:01:06]} Rc2 {[%emt 0:00:01][%csl LRb2,LRf2] ( -> ...Qh2+)} 27. Bd4 {[%emt 0:06:16]} exd4 {[%emt 0:00:14]} 28. Qxd4 {[%emt 0:00:02]} Rxf2 {[%emt 0:00:35]} 29. Qxf2 {[%emt 0:00:34]} Nxf2 {[%emt 0:00:07]} (29... Qh2+ $142 30. Kf1 Nxf2) 30. Kxf2 {[%emt 0:00:01]} Qe5 {[%emt 0:00:15] And now ...Qd4+ would win.} 31. Ra2 {[%emt 0:00:28]} f5 {[%emt 0:00:54][%cal Bf7f5,Bf5e4][%mdl 32]} 32. Re3 {[%emt 0:01:01]} fxe4+ {[%emt 0:03:44]} 33. Ke1 {[%emt 0:02:38]} Qd4 {[%emt 0:00:39] Black mates.} 34. Rae2 {[%emt 0:00:21]} Qa1+ {[%emt 0:00:28]} 35. Kd2 {[%emt 0:00:01]} Rd8+ {[%emt 0:00:18]} 36. Kc2 {[%emt 0:00:03]} Qd1+ {[%emt 0:00:46]} 37. Kc3 {[%emt 0:00:53]} Rd3+ {[%emt 0:00:21]} 38. Kc4 {[%emt 0:01:11]} Qc1+ {[%emt 0:00:13] Weighted Error Value: White=1.19/Black=0.47} 0-1

[Event "Frauenbundesliga 2021-22"]
[Site "Germany"]
[Date "2022.05.29"]
[Round "11.4"]
[White "Adamowicz, Katarzyna"]
[Black "Schulz, Petra"]
[Result "1/2-1/2"]
[ECO "C16"]
[WhiteElo "2108"]
[BlackElo "1996"]
[Annotator "TA"]
[PlyCount "130"]
[EventDate "2021.11.26"]
[EventType "team-tourn"]
[EventCountry "GER"]
[SourceTitle "playchess.com"]
[Source "ChessBase"]
[SourceQuality "1"]
[WhiteTeam "Harksheide"]
[BlackTeam "Leipzig"]
[TimeControl "40/5400+30:1800+30"]

{[%evp 17,130,31,26,-12,0,-21,9,-71,-62,-47,15,20,43,-8,-7,-124,-131,-528,-509,-513,-515,-500,-183,-446,-96,-96,-100,-74,-92,-70,17,-32,-32,-47,-57,-54,-55,-252,-122,-120,-125,-139,-116,-134,-137,-156,-95,-118,-112,-100,-108,-189,-198,-265,-254,-304,-304,-308,-181,-304,-294,-294,-293,-303,-239,-229,0,-289,-200,-233,-135,-135,-97,-89,0,0,0,0,0,0,0,0,0,0,0,0,0,0,0,-8,-8,-8,-8,-8,-8,-8,-8,-8,-8,-580,0,0,0,0,0,0,0,0,0,0,0,0,0,0,0]} 1. e4 {[%emt 0:00:03]} e6 {[%emt 0:00:05]} 2. d4 {[%emt 0:00:08]} d5 {[%emt 0:00:04]} 3. Nc3 {[%emt 0:00:06]} Bb4 {[%emt 0:00:06]} 4. e5 {[%emt 0:00:20]} Qd7 {[%emt 0:00:20]} 5. a3 {[%emt 0:02:42]} Bxc3+ {[%emt 0:00:06]} 6. bxc3 {[%emt 0:00:02]} b6 {[%emt 0:00:07]} 7. a4 {[%emt 0:06:41]} Ba6 {[%emt 0:00:11]} 8. Bxa6 {[%emt 0:01:42]} Nxa6 {[%emt 0:00:02]} 9. Qd3 {[%emt 0:00:06]} Nb8 {[%emt 0:00:47]} 10. h4 {[%emt 0:04:00] C16: French: 3 Nc3 Bb4 4 e5: Lines without ...c5.} (10. Qg3 $5 {[%cal Rg3g7]} Kf8 11. Qd3 $11) 10... Nc6 {[%emt 0:00:51]} 11. h5 {[%emt 0:01:25]} (11. Qg3 $5 {[%cal Rg3g7]} f6 12. Nf3 $11) 11... f6 {[%emt 0:07:09] [#]} 12. h6 $146 {[%emt 0:03:52]} (12. Nf3 $11) ({Predecessor:} 12. Nf3 fxe5 13. dxe5 h6 14. a5 Nge7 15. axb6 cxb6 16. g4 Rf8 17. g5 hxg5 18. Nxg5 {1-0 (33) Smerdon,D (2403)-Johansen,D (2483) Melbourne 2004}) 12... fxe5 $17 {[%emt 0:00:50]} 13. dxe5 {[%emt 0:00:10]} gxh6 {[%emt 0:22:36]} (13... Nxe5 $2 14. Qd4 Nxh6 15. Qxe5 $18 (15. Bxh6 Nc4 $18)) (13... Nxh6 $15 14. Bxh6 gxh6) 14. Nf3 $11 {[%emt 0:06:21]} Qg7 {[%emt 0:03:22]} 15. Qb5 {[%emt 0:04:23]} (15. Kf1 $14) 15... Nge7 {[%emt 0:05:02]} 16. Rxh6 {[%emt 0:36:39]} (16. g3 $11) 16... Qxg2 $17 {[%emt 0:13:55]} 17. Rxe6 $2 {[%emt 0:00:36][%mdl 8192]} (17. Ng5 $17 {is more resistant.}) 17... O-O $19 {[%emt 0:00:32]} (17... Qxf3 $2 18. Qxc6+ Kd8 19. Qxa8+ $18) 18. Be3 {[%emt 0:09:49]} Qxf3 {[%emt 0:09:47]} 19. Kd2 {[%emt 0:00:04]} a6 $2 {[%emt 0:02:16]} (19... Kh8 20. Qd3 Qh3) 20. Qd3 $2 {[%emt 0:01:36]} (20. Rg1+ Kh8 21. Qe2) 20... Qf5 $2 {[%emt 0:01:23]} (20... Rf5 $19 {and Black stays clearly on top.} 21. Rg1+ Kf7 22. Rf6+ Rxf6 23. Qxh7+ Ke6 24. exf6 Qxf6) 21. Rg1+ $17 {[%emt 0:02:03]} Kh8 {[%emt 0:00:07]} 22. Qxf5 {[%emt 0:00:19]} Rxf5 {[%emt 0:00:06]} 23. Bg5 {[%emt 0:00:37] [#]} Rxf2+ {[%emt 0:09:27]} (23... Raf8 $1 $15 24. Bxe7 Rxf2+ 25. Kc1 Nxe7 26. Rxe7 R2f7) 24. Ke1 {[%emt 0:00:06] [#]} (24. Kd1 $11 Rg8 25. Bf6+ Rxf6 26. Rxg8+ Kxg8 27. exf6) 24... Raf8 $1 $15 {[%emt 0:00:37][%cal Oe7g6]} 25. Bf6+ {[%emt 0:01:37] [#]} R2xf6 $1 {[%emt 0:00:07]} 26. exf6 {[%emt 0:00:05]} Ng6 {[%emt 0:01:54]} 27. Rf1 $2 {[%emt 0:13:11]} ({White has to play} 27. Rxc6 $15 Ne5 28. Rxc7 Nf3+ 29. Kf2 Nxg1 30. Kxg1) 27... Nd8 {[%emt 0:02:05]} (27... Na5 $19 {Threatens to win with ...Kg8.} 28. Rf5 h6) 28. Re7 $17 {[%emt 0:00:49]} c6 {[%emt 0:03:52]} (28... Nxe7 $2 29. fxe7 Re8 30. Rf8+ Kg7 31. Rxe8 $18) 29. Ra7 {[%emt 0:01:40]} a5 {[%emt 0:02:56]} 30. Ra6 {[%emt 0:00:47]} Re8+ {[%emt 0:01:35]} 31. Kd1 {[%emt 0:00:29]} Kg8 {[%emt 0:04:27]} ({Black should play} 31... Ne5 $1 {Hoping for ...Ndf7.} 32. Re1 Kg8 33. Rxb6 Kf7) 32. Rxb6 {[%emt 0:00:25]} Ne5 $1 {[%emt 0:00:17]} 33. Ra6 {[%emt 0:01:57]} Nc4 {[%emt 0:00:56]} 34. Rf3 {[%emt 0:00:15] [#]} (34. Kc1 $17 {was called for.}) 34... Kf7 $1 $19 {[%emt 0:04:00]} 35. Ra7+ {[%emt 0:00:07] [#]} (35. Rf2 $142 Rf8 36. Ra7+ Ke6 37. Ra8) 35... Ke6 $1 {[%emt 0:00:32]} 36. Rxh7 {[%emt 0:00:56]} Nf7 {[%emt 0:02:02]} 37. Rf2 {[%emt 0:00:07]} Nce5 {[%emt 0:01:59]} (37... Rb8 $142 {Strongly threatening ...Rb1+.} 38. Kc1 Na3) 38. Kc1 {[%emt 0:00:55]} (38. Re2 $142) 38... Rg8 {[%emt 0:00:14]} 39. Rg7 {[%emt 0:00:45]} Rh8 {[%emt 0:00:07]} 40. Kb2 {[%emt 0:01:38]} Rb8+ {[%emt 0:02:25]} 41. Ka2 {[%emt 0:30:25]} Rh8 $2 {[%emt 0:05:32]} (41... Nc4 $19 {...Rh8 is the strong threat.} 42. Rfg2 Rb6) 42. Rg1 $2 {[%emt 0:00:00][%mdl 8192]} (42. Kb2 $1 $11 {and White is okay.}) 42... Rh4 {[%emt 0:02:59]} 43. Kb3 {[%emt 0:00:00]} Re4 {[%emt 0:00:50]} (43... Rh6 $19 44. Rgf1 Rh3) 44. Rg8 $17 {[%emt 0:00:00]} Nd6 {[%emt 0:01:33] Inhibits Re8+.} 45. Ra8 {[%emt 0:00:00]} Nd7 {[%emt 0:02:27]} (45... Re3 $17 {And now ...Nf3 would win.} 46. Ra7 d4) 46. f7 $1 $11 {[%emt 0:00:00]} Nc5+ {[%emt 0:00:06]} 47. Kb2 {[%emt 0:00:00]} Nxa4+ {[%emt 0:00:35] Pair of Knights!} 48. Kc1 {[%emt 0:00:00]} Nxf7 {[%emt 0:01:03]} 49. Re8+ {[%emt 0:00:00]} Kd6 {[%emt 0:00:19]} 50. Rxe4 {[%emt 0:00:00]} dxe4 {[%emt 0:01:24]} 51. Rxf7 {[%emt 0:00:00]} Nxc3 {[%emt 0:00:14][%mdl 4096] Endgame KR-KN} 52. Kd2 {[%emt 0:00:00]} Nb5 {[%emt 0:01:49]} 53. Ke3 {[%emt 0:00:00]} Kc5 {[%emt 0:00:41]} 54. Rf6 {[%emt 0:00:00]} a4 {[%emt 0:00:33]} 55. Kxe4 {[%emt 0:00:00] aiming for Kd3.} a3 {[%emt 0:02:22]} 56. Kd3 {[%emt 0:00:00]} a2 {[%emt 0:00:30]} 57. Rf1 {[%emt 0:00:00]} Kb4 {[%emt 0:00:08]} 58. Kd2 $2 {[%emt 0:02:12][%mdl 8192]} (58. c4 $11 Nd6 59. Kd4) 58... Nc3 $2 {[%emt 0:07:09]} (58... Nd6 $19 59. Kd3 Nb7 60. c3+ Kb3) 59. Ra1 {[%emt 0:04:02] The position is equal.} Nb1+ {[%emt 0:01:21]} (59... c5 $5) 60. Kc1 {[%emt 0:00:05] Black must now prevent Kb2.} Ka3 {[%emt 0:00:07] ( -> ...Nc3)} 61. Rxb1 {[%emt 0:00:28]} axb1=Q+ 62. Kxb1 {[%emt 0:00:06]} Kb4 {[%emt 0:00:17]} 63. Kb2 {[%emt 0:00:18]} Kc4 {[%emt 0:00:10]} 64. Ka2 $1 {[%emt 0:01:55]} Kb4 {[%emt 0:03:57]} 65. Kb2 {[%emt 0:00:10]} Kc4 {[%emt 0:07:38] Weighted Error Value: White=0.52/Black=0.50} 1/2-1/2

[Event "Frauenbundesliga 2021-22"]
[Site "Germany"]
[Date "2022.05.29"]
[Round "11.4"]
[White "Manusina, Nicole"]
[Black "Theissl Pokorna, Regina"]
[Result "0-1"]
[ECO "D32"]
[WhiteElo "2003"]
[BlackElo "2302"]
[Annotator "TA"]
[PlyCount "80"]
[EventDate "2021.11.26"]
[EventType "team-tourn"]
[EventCountry "GER"]
[SourceTitle "playchess.com"]
[Source "ChessBase"]
[SourceQuality "1"]
[WhiteTeam "Lehrte"]
[BlackTeam "Rodewisch"]
[TimeControl "40/5400+30:1800+30"]

{[%evp 19,80,4,30,-15,-22,-15,-18,-35,13,-19,-11,-54,-50,-83,-69,-64,-68,-119,-102,-116,-119,-115,-125,-113,-108,-110,-114,-102,-84,-92,-100,-110,-66,-75,0,-124,-83,-124,-102,-263,-264,-259,-254,-239,-245,-439,-420,-429,-420,-638,-623,-594,-584,-704,-470,-745,-645,-658,-486,-453,-235,-1119,-1085]} 1. d4 {[%emt 0:00:03]} d5 {[%emt 0:00:08]} 2. c4 {[%emt 0:00:07]} e6 {[%emt 0:00:04]} 3. Nc3 {[%emt 0:00:12]} c5 {[%emt 0:00:06]} 4. cxd5 {[%emt 0:05:54]} exd5 {[%emt 0:00:06]} 5. Nf3 {[%emt 0:02:43]} Nc6 {[%emt 0:00:31]} 6. e3 {[%emt 0:01:52]} Nf6 {[%emt 0:00:07]} 7. Be2 {[%emt 0:06:36]} a6 {[%emt 0:03:32]} 8. dxc5 {[%emt 0:01:04]} Bxc5 {[%emt 0:00:05]} 9. a3 {[%emt 0:00:32]} O-O {[%emt 0:00:12]} 10. O-O {[%emt 0:00:06]} Bd6 {[%emt 0:10:32]} 11. h3 {[%emt 0:07:14] D32: Tarrasch Defence: Sidelines and lines without g3.} Bc7 {[%emt 0:03:04] [#]} 12. Bd3 $146 {[%emt 0:10:40]} ({Predecessor:} 12. Re1 Qd6 13. Bf1 Re8 14. e4 dxe4 15. Qxd6 Bxd6 16. Nd2 Bf5 17. g4 {0-1 (59) Djoric,D (2270)-Raznikov,D (2474) Skopje 2013}) 12... Qd6 {[%emt 0:03:21]} 13. Ne2 {[%emt 0:05:18] The position is equal.} Be6 {[%emt 0:06:43]} (13... Bd7 $15) 14. Bc2 {[%emt 0:02:31]} Rad8 $40 {[%emt 0:07:32][%mdl 128] Black is up to no good.} 15. Rb1 {[%emt 0:10:38]} Ne4 {[%emt 0:11:09]} 16. Bxe4 {[%emt 0:09:05]} dxe4 {[%emt 0:00:05]} 17. Qxd6 {[%emt 0:00:06]} Bxd6 {[%emt 0:03:16]} 18. Nd2 {[%emt 0:01:56]} (18. Nfd4 $15) 18... f5 $17 {[%emt 0:03:42]} 19. b4 {[%emt 0:00:31]} Be5 {[%emt 0:02:09]} 20. b5 {[%emt 0:05:39] [#]} axb5 {[%emt 0:02:02]} 21. Rxb5 {[%emt 0:00:10]} Rd7 {[%emt 0:00:14]} 22. Rc5 {[%emt 0:04:16]} Rfd8 {[%emt 0:05:13] 0x0.001ab558344fdp-1022s more active pieces.} 23. Rc2 {[%emt 0:01:07]} Rd3 {[%emt 0:06:37]} 24. Nc4 {[%emt 0:01:23]} Bb8 {[%emt 0:03:59]} 25. g3 {[%emt 0:08:19]} R8d5 {[%emt 0:21:40] Hoping for ...Rc5.} 26. Nd2 {[%emt 0:04:51]} Rd8 {[%emt 0:01:15]} (26... g5 $17 27. g4 Bd7) 27. Nb1 {[%emt 0:02:47]} (27. Nc4 $1 $11 {keeps the balance.}) 27... Ne5 {[%emt 0:01:24] ...Bb3 is the strong threat.} 28. Kg2 {[%emt 0:00:32]} Nf3 {[%emt 0:00:33]} 29. Nbc3 $2 {[%emt 0:08:48] This costs White the game.} (29. Bb2 $17) 29... Be5 $19 {[%emt 0:00:32]} 30. Nb5 {[%emt 0:00:00]} Bb3 {[%emt 0:02:07]} 31. Rc5 {[%emt 0:00:00]} b6 {[%emt 0:00:14]} 32. Rc6 {[%emt 0:00:00]} (32. Rxe5 {was forced.} Nxe5 33. Nbd4) 32... Ba4 {[%emt 0:00:18] A strong pair of Bishops.} 33. Rxb6 {[%emt 0:00:00][%cal Ob5d4]} Rb3 {[%emt 0:00:05]} 34. Nbc3 {[%emt 0:00:00]} (34. Nec3 $142 Bxc3 35. Nxc3 Rxc3 36. Rb4) 34... Rxb6 {[%emt 0:00:17]} 35. Nxa4 {[%emt 0:00:00]} Rc6 {[%emt 0:00:38]} 36. Nf4 {[%emt 0:00:00]} Ra8 {[%emt 0:00:58]} 37. Nb2 {[%emt 0:00:18]} (37. Nd5 $142 Kf7 38. Nb4 Rxc1 39. Rxc1 Rxa4 40. g4) 37... Rc2 {[%emt 0:00:26]} 38. Nbd3 {[%emt 0:00:37]} exd3 {[%emt 0:00:21]} 39. Nxd3 {[%emt 0:00:44] [#]} Rc3 {[%emt 0:01:48]} (39... Ng5 $142 $1 40. e4 Bf6 41. exf5 Ne4) 40. Rd1 $2 {[%emt 0:01:02] [#]} (40. Nb4) 40... Rxd3 $1 {[%emt 0:00:39] Weighted Error Value: White=0.84/Black=0.35} 0-1